bitfinex/quotes_BTCUSD_20241130
["timestamp","ask_amount","ask_price","bid_price","bid_amount"]
[1732953296221,0.0017314,96930.0,96929.0,0.06396956]
[1732953296672,0.1048984,96930.0,96929.0,0.06396956]
[1732953300266,0.0017314,96930.0,96929.0,0.06396956]
[1732953308299,0.1048984,96930.0,96929.0,0.06396956]
[1732953309223,0.0017314,96930.0,96929.0,0.06396956]
[1732953309434,0.1048984,96930.0,96929.0,0.06396956]
[1732953309912,0.0017314,96930.0,96929.0,0.06396956]
[1732953313597,0.0998984,96930.0,96929.0,0.06396956]
[1732953317274,0.1016298,96930.0,96929.0,0.06396956]
[1732953320495,0.1016298,96930.0,96929.0,0.06196956]
[1732953320736,0.1016298,96930.0,96929.0,0.06296956]
[1732953321435,0.1016298,96930.0,96929.0,0.47266647]
[1732953321650,0.1016298,96930.0,96929.0,0.46866647]
[1732953321859,0.1016298,96930.0,96929.0,0.47166647]
[1732953322305,0.1016298,96930.0,96929.0,0.06196956]
[1732953324340,0.1016298,96930.0,96929.0,0.47201368]
[1732953324802,0.1016298,96930.0,96929.0,0.47212269]
[1732953325226,0.1016298,96930.0,96929.0,0.06196956]
[1732953329579,0.1016298,96930.0,96929.0,0.06283526]
[1732953331425,0.1016298,96930.0,96929.0,0.01513526]
[1732953331426,0.20447501,96930.0,96929.0,0.01513526]
[1732953335426,0.20447501,96930.0,96929.0,0.14073526]
[1732953346468,0.20447501,96930.0,96929.0,0.09253526]
[1732953350689,0.20447501,96930.0,96929.0,0.01513526]
[1732953351423,0.20447501,96930.0,96929.0,0.00513526]
[1732953351642,0.23672125,96930.0,96929.0,0.00513526]
[1732953352522,0.23672125,96930.0,96929.0,0.00413526]
[1732953352736,0.23672125,96930.0,96929.0,0.00113526]
[1732953353750,0.20447501,96930.0,96929.0,0.41208492]
[1732953353957,0.20447501,96930.0,96929.0,0.00113526]
[1732953354292,0.23671215,96930.0,96929.0,0.00113526]
[1732953364018,0.28251215,96930.0,96929.0,0.00113526]
[1732953364226,0.36211215,96930.0,96929.0,0.00113526]
[1732953365559,0.36411215,96930.0,96929.0,0.00113526]
[1732953366028,0.36311215,96930.0,96929.0,0.00113526]
[1732953366256,0.36411215,96930.0,96929.0,0.00113526]
[1732953367617,0.51411215,96930.0,96929.0,0.00113526]
[1732953368774,0.103168,96929.0,96928.0,9.6e-07]
[1732953368995,0.253176,96921.0,96920.0,4.7e-07]
[1732953369234,0.51825835,96921.0,96920.0,4.7e-07]
[1732953370563,0.71164429,96921.0,96920.0,4.7e-07]
[1732953371678,0.71164429,96921.0,96920.0,0.001]
[1732953371892,0.103198,96901.0,96900.0,0.01131577]
[1732953372113,0.20604321,96901.0,96900.0,0.01131577]
[1732953372556,0.20604321,96901.0,96900.0,0.00829683]
[1732953373210,0.20604321,96901.0,96900.0,0.00889384]
[1732953373429,0.21304321,96901.0,96900.0,0.00989384]
[1732953373649,0.21704321,96901.0,96900.0,0.00989384]
[1732953375457,0.36704321,96901.0,96900.0,0.00989384]
[1732953375665,0.36004321,96901.0,96900.0,0.00889384]
[1732953375932,0.35604321,96901.0,96900.0,0.00989384]
[1732953376161,0.36504321,96901.0,96900.0,0.00989384]
[1732953376813,0.49274321,96901.0,96900.0,0.00989384]
[1732953378156,0.52482516,96901.0,96900.0,0.00989384]
[1732953378864,0.49274321,96901.0,96900.0,0.00989384]
[1732953381543,0.49274321,96901.0,96900.0,0.00989384]
[1732953383053,1.03414321,96901.0,96900.0,0.00989384]
[1732953384562,1.06620354,96901.0,96900.0,0.00989384]
[1732953385003,1.03414321,96901.0,96900.0,0.00989384]
[1732953385550,1.06620418,96901.0,96900.0,0.00989384]
[1732953386907,0.95474321,96901.0,96900.0,0.00989384]
[1732953387800,0.98680164,96901.0,96900.0,0.00989384]
[1732953388017,0.95474321,96901.0,96900.0,0.00989384]
[1732953388238,0.98680184,96901.0,96900.0,0.00989384]
[1732953388445,0.93850184,96901.0,96900.0,0.00989384]
[1732953393271,0.93450184,96901.0,96900.0,0.00989384]
[1732953393508,0.93850184,96901.0,96900.0,0.00989384]
[1732953394163,0.93350184,96901.0,96900.0,0.00889384]
[1732953394613,0.93750184,96901.0,96900.0,0.00889384]
[1732953394836,0.93350184,96901.0,96900.0,0.00889384]
[1732953395062,0.93750184,96901.0,96900.0,0.00889384]
[1732953395527,0.93350184,96901.0,96900.0,0.00889384]
[1732953395741,1.06160184,96901.0,96900.0,0.00889384]
[1732953395954,1.06560184,96901.0,96900.0,0.00889384]
[1732953396406,0.98560184,96901.0,96900.0,0.00889384]
[1732953398021,0.98733344,96901.0,96900.0,0.00889384]
[1732953399595,0.93923344,96901.0,96900.0,0.13819384]
[1732953399826,0.78923344,96901.0,96900.0,0.13819384]
[1732953400778,0.78523344,96901.0,96900.0,0.13819384]
[1732953401006,0.39383344,96901.0,96900.0,0.13819384]
[1732953401434,0.39583344,96901.0,96900.0,0.13819384]
[1732953401672,0.39983344,96901.0,96900.0,0.13819384]
[1732953401899,0.39783344,96901.0,96900.0,0.13819384]
[1732953402362,0.39883344,96901.0,96900.0,0.13819384]
[1732953402586,0.39483344,96901.0,96900.0,0.13819384]
[1732953402751,0.39083344,96901.0,96900.0,0.13819384]
[1732953403019,0.38983344,96901.0,96900.0,0.13819384]
[1732953404028,0.39183344,96901.0,96900.0,0.13819384]
[1732953404226,0.38983344,96901.0,96900.0,0.13819384]
[1732953404439,0.39183344,96901.0,96900.0,0.13819384]
[1732953404639,0.39483344,96901.0,96900.0,0.13819384]
[1732953404846,0.39283344,96901.0,96900.0,0.13819384]
[1732953405220,0.39483344,96901.0,96900.0,0.13819384]
[1732953410709,0.39483344,96901.0,96900.0,0.08979384]
[1732953427743,0.38983344,96901.0,96900.0,0.08979384]
[1732953434018,0.38483344,96901.0,96900.0,0.08979384]
[1732953434241,0.38583344,96901.0,96900.0,0.08979384]
[1732953434474,0.38683344,96901.0,96900.0,0.08979384]
[1732953434703,0.38483344,96901.0,96900.0,0.08979384]
[1732953434900,0.38583344,96901.0,96900.0,0.08979384]
[1732953435170,0.38683344,96901.0,96900.0,0.08979384]
[1732953435386,0.38583344,96901.0,96900.0,0.08979384]
[1732953436719,0.38583344,96901.0,96900.0,0.08979384]
[1732953437791,0.38683344,96901.0,96900.0,0.08979384]
[1732953438000,0.38583344,96901.0,96900.0,0.08979384]
[1732953438443,0.38683344,96901.0,96900.0,0.08979384]
[1732953439195,0.38683344,96901.0,96900.0,0.00889384]
[1732953446974,0.38683344,96901.0,96900.0,0.00889384]
[1732953470178,0.38665437,96901.0,96900.0,0.00889384]
[1732953471005,0.38582148,96901.0,96900.0,0.00889384]
[1732953479747,0.39653758,96901.0,96900.0,0.00889384]
[1732953479950,0.38582148,96901.0,96900.0,0.00889384]
[1732953484776,0.37082148,96901.0,96900.0,0.00889384]
[1732953486058,0.37082148,96901.0,96900.0,0.14019384]
[1732953489105,0.37082148,96901.0,96900.0,0.11896084]
[1732953493192,0.37082148,96901.0,96900.0,0.0482]
[1732953500981,0.37082148,96901.0,96900.0,0.0490655]
[1732953504432,0.37082148,96901.0,96900.0,0.0008655]
[1732953504662,0.39382148,96901.0,96900.0,0.0008655]
[1732953506012,0.47392148,96901.0,96900.0,0.0008655]
[1732953507063,0.39382148,96901.0,96900.0,0.0008655]
[1732953536332,0.39382148,96901.0,96900.0,0.1356655]
[1732953536333,0.22082148,96901.0,96900.0,0.1356655]
[1732953536594,0.39382148,96901.0,96900.0,0.1356655]
[1732953543218,0.39182148,96901.0,96900.0,0.1356655]
[1732953543453,0.39282148,96901.0,96900.0,0.1356655]
[1732953543679,0.39382148,96901.0,96900.0,0.1356655]
[1732953543907,0.39182148,96901.0,96900.0,0.1356655]
[1732953544373,0.39382148,96901.0,96900.0,0.1356655]
[1732953551192,0.39382148,96901.0,96900.0,0.0605655]
[1732953553961,0.39382148,96901.0,96900.0,0.0108655]
[1732953568133,0.24382148,96901.0,96900.0,0.0108655]
[1732953569203,0.39382148,96901.0,96900.0,0.0108655]
[1732953572944,0.39282148,96901.0,96900.0,0.0108655]
[1732953573210,0.39182148,96901.0,96900.0,0.0108655]
[1732953573379,0.39282148,96901.0,96900.0,0.0108655]
[1732953573587,0.39182148,96901.0,96900.0,0.0108655]
[1732953573827,0.39282148,96901.0,96900.0,0.0118655]
[1732953574241,0.39182148,96901.0,96900.0,0.0118655]
[1732953574457,0.39182148,96901.0,96900.0,0.0108655]
[1732953574664,0.39182148,96901.0,96900.0,0.0118655]
[1732953582700,0.24182148,96901.0,96900.0,0.0118655]
[1732953584161,0.39182148,96901.0,96900.0,0.0118655]
[1732953584384,0.39182148,96901.0,96900.0,0.01125801]
[1732953592175,0.24182148,96901.0,96900.0,0.01125801]
[1732953597050,0.24182148,96901.0,96900.0,0.01025801]
[1732953598695,0.39182148,96901.0,96900.0,0.01025801]
[1732953600246,0.35880285,96901.0,96900.0,0.01025801]
[1732953600677,0.39107448,96901.0,96900.0,0.01025801]
[1732953603159,0.24107448,96901.0,96900.0,0.01025801]
[1732953605076,0.39107448,96901.0,96900.0,0.01025801]
[1732953607734,0.30984844,96901.0,96900.0,0.01025801]
[1732953607942,0.41304644,96901.0,96900.0,0.01025801]
[1732953610811,0.41404644,96901.0,96900.0,0.01025801]
[1732953610991,0.41704644,96901.0,96900.0,0.01025801]
[1732953611442,0.41604644,96901.0,96900.0,0.01025801]
[1732953611883,0.41804644,96901.0,96900.0,0.01025801]
[1732953619469,0.41655556,96901.0,96900.0,0.01025801]
[1732953620341,0.41655556,96901.0,96900.0,0.0095045]
[1732953620752,0.41655556,96901.0,96900.0,0.1362045]
[1732953622867,0.03900323,96901.0,96900.0,0.1362045]
[1732953623102,0.02743221,96901.0,96900.0,0.2512298]
[1732953623305,0.02743221,96901.0,96900.0,0.2494035]
[1732953623517,0.0037316,96901.0,96900.0,0.1362045]
[1732953623734,0.0037316,96901.0,96900.0,0.1462045]
[1732953624174,0.0047316,96901.0,96900.0,0.14803085]
[1732953624384,0.0047316,96901.0,96900.0,0.25122985]
[1732953624603,0.0067316,96901.0,96900.0,0.2494035]
[1732953624814,0.0067316,96901.0,96900.0,0.1462045]
[1732953625016,0.0047316,96901.0,96900.0,0.14803086]
[1732953625897,0.0017316,96901.0,96900.0,0.14803086]
[1732953626096,0.0017316,96901.0,96900.0,0.1362045]
[1732953626550,0.0017316,96901.0,96900.0,0.14507]
[1732953626999,0.0017316,96901.0,96900.0,0.1275655]
[1732953627229,0.20777481,96901.0,96900.0,0.14107]
[1732953627450,0.23077481,96901.0,96900.0,0.02137]
[1732953627888,0.23077481,96901.0,96900.0,0.01437]
[1732953628109,0.26299289,96901.0,96900.0,0.01437]
[1732953628330,0.26299289,96901.0,96900.0,0.01037]
[1732953628594,0.28397408,96901.0,96900.0,0.01037]
[1732953629277,0.28397408,96901.0,96900.0,0.01537]
[1732953629724,0.28397408,96901.0,96900.0,0.01037]
[1732953629952,0.26599289,96901.0,96900.0,0.01337]
[1732953630405,0.26599289,96901.0,96900.0,0.01037]
[1732953630621,0.26699289,96901.0,96900.0,0.01037]
[1732953630844,0.26399289,96901.0,96900.0,0.01037]
[1732953631280,0.26299289,96901.0,96900.0,0.01037]
[1732953632159,0.26599289,96901.0,96900.0,0.01037]
[1732953632641,0.26299289,96901.0,96900.0,0.01037]
[1732953632854,0.26399289,96901.0,96900.0,0.01037]
[1732953633443,0.26699289,96901.0,96900.0,0.01037]
[1732953633591,0.26599289,96901.0,96900.0,0.01037]
[1732953633796,0.26299289,96901.0,96900.0,0.01037]
[1732953634266,0.26599289,96901.0,96900.0,0.01037]
[1732953634465,0.26799289,96901.0,96900.0,0.01037]
[1732953635683,0.26499289,96901.0,96900.0,0.01037]
[1732953636176,0.26299289,96901.0,96900.0,0.01037]
[1732953636945,0.26299289,96901.0,96900.0,0.0008655]
[1732953636946,0.41599289,96901.0,96900.0,0.0008655]
[1732953637150,0.41799289,96901.0,96900.0,0.0008655]
[1732953638003,0.41599289,96901.0,96900.0,0.0008655]
[1732953638857,0.49399289,96901.0,96900.0,0.0008655]
[1732953639087,1.08739289,96901.0,96900.0,5e-07]
[1732953639303,1.08939289,96901.0,96900.0,5e-07]
[1732953643993,1.21138175,96901.0,96900.0,5e-07]
[1732953644419,1.10867925,96901.0,96893.0,5e-07]
[1732953644646,0.35605021,96894.0,96893.0,6.01e-05]
[1732953644867,0.38826829,96894.0,96893.0,6.01e-05]
[1732953645080,0.41126829,96894.0,96893.0,6.01e-05]
[1732953645729,0.4843548,96894.0,96893.0,6.01e-05]
[1732953645964,0.4843548,96894.0,96893.0,0.0010601]
[1732953646165,0.4903548,96894.0,96893.0,0.0010601]
[1732953646380,0.41726829,96894.0,96893.0,0.0010601]
[1732953646817,0.42026829,96894.0,96893.0,0.0010601]
[1732953647432,0.96166829,96894.0,96893.0,0.0010601]
[1732953648771,0.93866829,96894.0,96893.0,0.0010601]
[1732953649643,0.94039949,96894.0,96893.0,0.0010601]
[1732953650512,0.42199949,96894.0,96893.0,0.0010601]
[1732953651977,0.24899949,96894.0,96893.0,0.0010601]
[1732953652533,0.21678141,96894.0,96893.0,0.0010601]
[1732953653161,0.36678141,96894.0,96893.0,0.0010601]
[1732953653946,0.38978141,96894.0,96893.0,0.0010601]
[1732953654364,0.38978141,96894.0,96893.0,0.0105646]
[1732953654940,0.38927401,96894.0,96893.0,0.0105646]
[1732953664121,0.28657641,96894.0,96893.0,0.0105646]
[1732953664467,0.13657641,96894.0,96893.0,0.0105646]
[1732953664703,0.0107312,96894.0,96893.0,0.2441706]
[1732953665520,0.0077312,96894.0,96893.0,0.2541706]
[1732953665723,0.0077312,96894.0,96893.0,0.2531706]
[1732953665925,0.0017312,96894.0,96893.0,0.2531706]
[1732953670159,0.0017312,96894.0,96893.0,0.2631706]
[1732953670964,0.0017312,96894.0,96893.0,0.2531706]
[1732953672744,0.0017312,96894.0,96893.0,0.2581706]
[1732953672947,0.0027312,96894.0,96893.0,0.2671706]
[1732953673159,0.0027312,96894.0,96893.0,0.2771706]
[1732953673563,0.0017316,96901.0,96900.0,0.0195045]
[1732953673765,0.0017316,96901.0,96900.0,0.25061776]
[1732953673971,0.0017316,96901.0,96900.0,0.2487917]
[1732953674707,0.0017316,96901.0,96900.0,0.2587917]
[1732953675109,0.0037316,96901.0,96900.0,0.2607917]
[1732953681824,0.0037316,96901.0,96900.0,0.4107917]
[1732953693802,0.0037316,96901.0,96900.0,0.72143106]
[1732953694139,0.0027316,96901.0,96900.0,0.4097917]
[1732953694325,0.0017316,96901.0,96900.0,0.4087917]
[1732953694554,0.0027316,96901.0,96900.0,0.4097917]
[1732953694749,0.0027316,96901.0,96900.0,0.4107917]
[1732953694996,0.0027316,96901.0,96900.0,0.4097917]
[1732953695380,0.0027316,96901.0,96900.0,0.4107917]
[1732953696025,0.0027316,96901.0,96900.0,0.72158022]
[1732953696291,0.0027316,96901.0,96900.0,0.4107917]
[1732953696514,0.0017316,96901.0,96900.0,0.4097917]
[1732953698299,0.0027316,96901.0,96900.0,0.4097917]
[1732953706735,0.0027316,96901.0,96900.0,0.1465927]
[1732953706945,0.0027316,96901.0,96900.0,0.0214927]
[1732953707805,0.0027316,96901.0,96900.0,0.0109882]
[1732953708007,0.0017316,96901.0,96900.0,0.0214927]
[1732953708259,0.0027316,96901.0,96900.0,0.0214927]
[1732953708502,0.0027316,96901.0,96900.0,0.0009882]
[1732953708503,0.33867481,96901.0,96900.0,0.0009882]
[1732953708733,0.33867481,96901.0,96894.0,0.0008656]
[1732953708734,0.103204,96895.0,96894.0,0.0008656]
[1732953709003,0.20604921,96895.0,96894.0,0.0103701]
[1732953709617,0.28664921,96895.0,96894.0,0.0103701]
[1732953710489,0.28032356,96895.0,96894.0,0.0103701]
[1732953710710,0.28032356,96895.0,96894.0,0.0113701]
[1732953710926,0.28032356,96895.0,96894.0,0.0123701]
[1732953711139,0.28032356,96895.0,96894.0,0.0103701]
[1732953711572,0.28032356,96895.0,96894.0,0.0113701]
[1732953711780,0.28032356,96895.0,96894.0,0.0123701]
[1732953712875,0.28032356,96895.0,96894.0,0.0116729]
[1732953717756,0.34992356,96895.0,96894.0,0.0021684]
[1732953717884,0.49992356,96895.0,96894.0,0.0021684]
[1732953718477,0.49992356,96895.0,96894.0,0.0011684]
[1732953718902,0.52040687,96895.0,96894.0,0.0011684]
[1732953719333,0.52040687,96895.0,96894.0,0.0001684]
[1732953719813,0.52640687,96895.0,96894.0,0.0011684]
[1732953720258,0.52940687,96895.0,96894.0,0.0011684]
[1732953720448,0.53540687,96895.0,96894.0,0.0011684]
[1732953722488,0.53540687,96895.0,96894.0,0.0011684]
[1732953723566,0.51492356,96895.0,96894.0,0.0011684]
[1732953724543,0.95644521,96895.0,96893.0,5e-07]
[1732953724753,0.360023,96877.0,96876.0,0.0017306]
[1732953724975,0.48586821,96877.0,96876.0,0.00179028]
[1732953727368,0.49086821,96877.0,96876.0,0.00179028]
[1732953727591,0.49386821,96877.0,96876.0,0.00179028]
[1732953728637,1.03526821,96877.0,96876.0,0.00179028]
[1732953736288,1.06726768,96877.0,96876.0,0.00179028]
[1732953737512,1.06652802,96877.0,96876.0,0.00179028]
[1732953737733,1.16935948,96877.0,96876.0,0.00179028]
[1732953738399,1.16135948,96877.0,96876.0,0.00179028]
[1732953738604,1.06352802,96877.0,96876.0,0.00179028]
[1732953739018,1.06152802,96877.0,96876.0,0.00179028]
[1732953739378,1.06652802,96877.0,96876.0,0.00179028]
[1732953739622,1.06352802,96877.0,96876.0,0.00179028]
[1732953739799,1.06652802,96877.0,96876.0,0.00179028]
[1732953740250,1.07723936,96877.0,96876.0,0.00179028]
[1732953741111,1.07897096,96877.0,96876.0,0.00179028]
[1732953748054,0.97217096,96877.0,96876.0,0.00179028]
[1732953748279,0.97217096,96877.0,96876.0,2.8e-07]
[1732953748498,1.09897096,96877.0,96876.0,2.8e-07]
[1732953748958,0.276229,96872.0,96871.0,7.8e-07]
[1732953749197,0.276229,96872.0,96871.0,4.9e-07]
[1732953749198,0.53787368,96872.0,96871.0,4.9e-07]
[1732953749612,0.173,96871.0,96869.0,9e-08]
[1732953749816,0.26164468,96872.0,96869.0,6.164e-05]
[1732953749817,0.41107568,96870.0,96869.0,6.164e-05]
[1732953750860,0.41107568,96870.0,96869.0,6.4e-07]
[1732953751681,0.276232,96869.0,96868.0,0.00082614]
[1732953751897,0.41107668,96869.0,96868.0,0.00082614]
[1732953753924,0.95347668,96869.0,96868.0,0.00082614]
[1732953754363,0.95447668,96869.0,96868.0,0.00082614]
[1732953756969,1.05730814,96869.0,96868.0,0.00082614]
[1732953758222,0.95447668,96869.0,96868.0,0.00082614]
[1732953761318,0.9706391,96869.0,96868.0,0.00082614]
[1732953771408,1.0508391,96869.0,96868.0,1.4e-07]
[1732953772052,1.0498391,96869.0,96868.0,1.4e-07]
[1732953772253,1.0488391,96869.0,96868.0,1.4e-07]
[1732953772727,1.07359636,96869.0,96868.0,1.4e-07]
[1732953773508,1.07959636,96869.0,96868.0,0.00100014]
[1732953774087,1.0588391,96869.0,96868.0,0.00100014]
[1732953775995,0.9786391,96869.0,96868.0,0.00100014]
[1732953776422,0.9803707,96869.0,96868.0,0.00100014]
[1732953780127,0.9803707,96869.0,96868.0,0.00100014]
[1732953787726,1.0217067,96869.0,96868.0,0.00100014]
[1732953788823,1.0217067,96869.0,96868.0,0.00040923]
[1732953791461,1.03959823,96869.0,96868.0,0.00040923]
[1732953796079,1.0217067,96869.0,96868.0,0.00040923]
[1732953799076,1.0217067,96869.0,96868.0,0.00127483]
[1732953825021,1.0217067,96869.0,96868.0,0.05107483]
[1732953825233,0.9987067,96869.0,96868.0,0.13287483]
[1732953827650,0.4573067,96869.0,96868.0,0.13287483]
[1732953829425,0.44114428,96869.0,96868.0,0.13287483]
[1732953830285,0.44114428,96869.0,96868.0,0.13419039]
[1732953831863,0.29114428,96869.0,96868.0,0.13419039]
[1732953853632,0.28958289,96869.0,96868.0,0.13419039]
[1732953855605,0.28958289,96869.0,96868.0,0.00259039]
[1732953862606,0.28958289,96869.0,96868.0,0.0002257]
[1732953863048,0.18791228,96869.0,96854.0,0.0009946]
[1732953863251,0.20609221,96855.0,96854.0,0.0009946]
[1732953863467,0.23809168,96855.0,96854.0,0.0009946]
[1732953863925,0.103249,96853.0,96852.0,0.0499]
[1732953864130,0.23809368,96853.0,96852.0,0.0499]
[1732953864870,0.23809368,96853.0,96852.0,0.0594045]
[1732953865117,0.23809368,96853.0,96852.0,0.05728269]
[1732953866451,0.23809368,96853.0,96852.0,0.05828269]
[1732953866649,0.23809368,96853.0,96852.0,0.05928269]
[1732953866850,0.23809368,96853.0,96852.0,0.05828269]
[1732953867069,0.24209368,96853.0,96852.0,0.05728269]
[1732953867515,0.24409368,96853.0,96852.0,0.05728269]
[1732953868609,0.24209368,96853.0,96852.0,0.05728269]
[1732953868836,0.23809368,96853.0,96852.0,0.05728269]
[1732953869084,0.24009368,96853.0,96852.0,0.05728269]
[1732953869309,0.24409368,96853.0,96852.0,0.05728269]
[1732953873763,0.24399207,96853.0,96852.0,0.05728269]
[1732953876593,0.24399207,96853.0,96852.0,0.04777819]
[1732953876837,0.24399207,96853.0,96852.0,0.05728269]
[1732953877450,0.24399207,96853.0,96852.0,0.0095045]
[1732953877673,0.10325,96852.0,96851.0,0.0097045]
[1732953877848,0.23809468,96852.0,96851.0,0.0002]
[1732953878102,0.23809468,96852.0,96851.0,0.0097045]
[1732953878939,0.24009468,96852.0,96851.0,0.0097045]
[1732953879561,0.24309468,96852.0,96851.0,0.0097045]
[1732953881739,0.24309468,96852.0,96851.0,0.1308045]
[1732953887028,0.21109521,96852.0,96851.0,0.1308045]
[1732953887244,0.24330717,96852.0,96851.0,0.1308045]
[1732953888443,0.24130717,96852.0,96851.0,0.1308045]
[1732953889093,0.23830717,96852.0,96851.0,0.1308045]
[1732953889570,0.23830717,96852.0,96851.0,0.1328045]
[1732953890907,0.23830717,96852.0,96851.0,0.1338045]
[1732953891314,0.23830717,96852.0,96851.0,0.1346702]
[1732953892531,0.23830717,96852.0,96851.0,0.0135702]
[1732953894059,0.23830717,96852.0,96851.0,0.0125702]
[1732953894261,0.24030717,96852.0,96851.0,0.0125702]
[1732953894724,0.25868429,96852.0,96851.0,0.0125702]
[1732953895384,0.25868429,96852.0,96851.0,0.0105702]
[1732953895816,0.25868429,96852.0,96851.0,0.0115702]
[1732953896061,0.25868429,96852.0,96851.0,0.0105702]
[1732953899054,0.23830717,96852.0,96851.0,0.0105702]
[1732953901910,0.23830717,96852.0,96851.0,0.0010657]
[1732953902166,0.24130717,96852.0,96851.0,0.0105702]
[1732953902349,0.24330717,96852.0,96851.0,0.0105702]
[1732953902486,0.24030717,96852.0,96851.0,0.0105702]
[1732953902737,0.24130717,96852.0,96851.0,0.0105702]
[1732953902943,0.24330717,96852.0,96851.0,0.0105702]
[1732953905583,0.24330717,96852.0,96851.0,0.0010657]
[1732953905811,0.24330717,96852.0,96851.0,0.0105702]
[1732953906253,0.24168684,96852.0,96851.0,0.0105702]
[1732953910965,0.24168684,96852.0,96851.0,0.0010657]
[1732953911199,0.24168684,96852.0,96851.0,0.0105702]
[1732953912099,0.39168684,96852.0,96851.0,0.0010657]
[1732953912997,0.38868684,96852.0,96851.0,0.0010657]
[1732953913505,0.38668684,96852.0,96851.0,0.0010657]
[1732953913962,0.38868684,96852.0,96851.0,0.0010657]
[1732953914637,0.39168684,96852.0,96851.0,0.0010657]
[1732953923941,0.39168684,96852.0,96851.0,1e-08]
[1732953927187,0.39341824,96852.0,96851.0,1e-08]
[1732953928485,0.103257,96845.0,96844.0,0.0009937]
[1732953928698,0.23831417,96845.0,96844.0,0.0009937]
[1732953931799,0.24231417,96845.0,96844.0,0.0009937]
[1732953932160,0.24431417,96845.0,96844.0,0.0009937]
[1732953932629,0.24231417,96845.0,96844.0,0.0009937]
[1732953933055,0.24831417,96845.0,96844.0,0.0009937]
[1732953934775,0.26139628,96845.0,96844.0,0.0009937]
[1732953935204,0.26239628,96845.0,96844.0,0.0009937]
[1732953935423,0.26139628,96845.0,96844.0,0.0007949]
[1732953935869,0.26239628,96845.0,96844.0,0.0007949]
[1732953936076,0.26239628,96845.0,96834.0,0.0095045]
[1732953936077,0.103265,96838.0,96834.0,0.0095045]
[1732953936293,0.23832217,96838.0,96835.0,0.0095045]
[1732953936505,0.23832217,96838.0,96834.0,0.0095045]
[1732953936718,0.23832217,96838.0,96836.0,0.0095045]
[1732953937156,0.23832217,96838.0,96833.0,0.0095045]
[1732953937362,0.23842673,96838.0,96834.0,0.0095045]
[1732953937561,0.23842673,96838.0,96832.0,0.0008657]
[1732953937562,0.23842673,96838.0,96835.0,0.0095045]
[1732953937984,0.23842673,96838.0,96834.0,0.0095045]
[1732953938187,0.23842673,96838.0,96836.0,0.0095045]
[1732953938388,0.23842673,96838.0,96837.0,0.0103701]
[1732953938812,0.23842673,96838.0,96837.0,0.0113701]
[1732953939261,0.23842673,96838.0,96837.0,0.0018656]
[1732953939873,0.23942673,96838.0,96837.0,0.0018656]
[1732953940297,0.23842673,96838.0,96837.0,0.0018656]
[1732953940753,0.23842673,96838.0,96837.0,0.0008656]
[1732953940965,0.24042673,96838.0,96837.0,0.0103701]
[1732953941376,0.23842673,96838.0,96837.0,0.0103701]
[1732953941640,0.24142673,96838.0,96837.0,0.0103701]
[1732953941891,0.24142673,96838.0,96837.0,0.0008656]
[1732953942941,0.24142673,96838.0,96830.0,0.0405367]
[1732953942942,0.103272,96831.0,96830.0,0.0405367]
[1732953943161,0.23832917,96831.0,96830.0,0.0405367]
[1732953944152,0.23832917,96831.0,96830.0,0.0425367]
[1732953945662,0.23832917,96831.0,96830.0,0.0435367]
[1732953949119,0.23789104,96831.0,96830.0,0.0435367]
[1732953951487,0.23789104,96831.0,96830.0,0.003]
[1732953953221,0.23789104,96831.0,96830.0,0.0038657]
[1732953953449,0.23962244,96831.0,96830.0,0.0038657]
[1732953957430,0.23773499,96831.0,96830.0,0.0038657]
[1732953963691,0.23773499,96831.0,96830.0,0.1340657]
[1732953965538,0.2580732,96831.0,96830.0,0.1340657]
[1732953968940,0.23773499,96831.0,96830.0,0.1340657]
[1732953972299,0.13678857,96831.0,96830.0,0.2473387]
[1732953972507,0.0017314,96831.0,96830.0,0.2473387]
[1732953972897,0.0017314,96831.0,96830.0,0.24743883]
[1732953973348,0.0017314,96831.0,96830.0,0.24643883]
[1732953973541,0.0017314,96831.0,96830.0,0.24443883]
[1732953973976,0.0027314,96831.0,96830.0,0.25343883]
[1732953974651,0.0027314,96831.0,96830.0,0.25943883]
[1732953976401,0.0027314,96831.0,96830.0,0.2593387]
[1732953980057,0.0027314,96831.0,96830.0,0.25941059]
[1732953983713,0.0027314,96831.0,96830.0,0.2593387]
[1732953987217,0.0027314,96831.0,96830.0,0.25939637]
[1732953988497,0.0027314,96831.0,96830.0,0.15612337]
[1732953989125,0.0027314,96831.0,96830.0,0.15795107]
[1732953990477,0.0027314,96831.0,96830.0,0.1578934]
[1732953992827,0.0027314,96831.0,96830.0,0.2611664]
[1732953993023,0.0027314,96831.0,96830.0,0.2593387]
[1732953994205,0.0027314,96831.0,96830.0,0.25938496]
[1732953994590,0.0027314,96831.0,96830.0,0.25736299]
[1732953997804,0.0027314,96831.0,96830.0,0.25731673]
[1732954000290,0.0027314,96831.0,96830.0,0.25818243]
[1732954003821,0.02288351,96831.0,96830.0,0.25818243]
[1732954005576,0.0027314,96831.0,96830.0,0.25818243]
[1732954014002,0.0027314,96831.0,96830.0,0.15490943]
[1732954014224,0.0027314,96831.0,96830.0,0.26001004]
[1732954014466,0.0027314,96831.0,96830.0,0.25818243]
[1732954016659,0.0027314,96831.0,96830.0,0.15490943]
[1732954016897,0.0027314,96831.0,96830.0,0.0158657]
[1732954016898,0.20884861,96831.0,96830.0,0.0158657]
[1732954017112,0.28564861,96831.0,96830.0,0.0158657]
[1732954018442,0.28564861,96831.0,96830.0,0.0098657]
[1732954018898,0.28464861,96831.0,96830.0,0.0048657]
[1732954019075,0.3178559,96831.0,96830.0,0.0128657]
[1732954019354,0.3178559,96831.0,96830.0,0.0008657]
[1732954019583,0.3178559,96831.0,96830.0,0.0048657]
[1732954022242,0.28564861,96831.0,96830.0,0.0038657]
[1732954022452,0.28464861,96831.0,96830.0,0.0008657]
[1732954022662,0.28464861,96831.0,96830.0,0.0018657]
[1732954022917,0.28464861,96831.0,96830.0,0.0038657]
[1732954023126,0.28464861,96831.0,96830.0,0.0008657]
[1732954023425,0.28464861,96831.0,96830.0,0.0038657]
[1732954025343,0.28464861,96831.0,96830.0,0.01159755]
[1732954025607,0.30568828,96831.0,96830.0,0.0038657]
[1732954028120,0.33783644,96831.0,96830.0,0.0038657]
[1732954028748,0.30568828,96831.0,96830.0,0.0038657]
[1732954028998,0.33782902,96831.0,96830.0,0.0038657]
[1732954029670,0.28464861,96831.0,96830.0,0.0038657]
[1732954031019,0.31677784,96831.0,96830.0,0.0038657]
[1732954031239,0.51627784,96831.0,96830.0,0.0038657]
[1732954032322,0.51407206,96831.0,96830.0,0.0038657]
[1732954035843,0.51580346,96831.0,96830.0,0.0038657]
[1732954036385,0.53683548,96831.0,96830.0,0.0038657]
[1732954037880,0.253275,96828.0,96827.0,1.62067631]
[1732954038078,0.43774944,96828.0,96827.0,1.62067631]
[1732954039028,0.43774944,96828.0,96827.0,1.62367631]
[1732954039261,0.43774944,96828.0,96827.0,1.62467631]
[1732954047484,0.43774944,96828.0,96827.0,1.62554201]
[1732954050230,0.45892013,96828.0,96827.0,1.62554201]
[1732954053071,0.40942013,96828.0,96827.0,1.62554201]
[1732954053963,0.38824944,96828.0,96827.0,1.62554201]
[1732954057341,0.43554944,96828.0,96827.0,1.62554201]